bitfinex/quotes_ETHUSD_20220112
["timestamp","ask_amount","ask_price","bid_price","bid_amount"]
[1642006286308,3.73856306,3368.1,3368.0,0.00599909]
[1642006286907,3.73856306,3368.1,3367.5,0.1187]
[1642006286908,4.58626306,3368.1,3367.6,0.00827278]
[1642006287155,1.60314,3368.0,3367.6,0.00827278]
[1642006287354,3.04902193,3367.9,3367.6,0.00827278]
[1642006287550,3.79124193,3367.9,3367.6,0.00827278]
[1642006287750,3.79124193,3367.9,3367.1,0.0111149]
[1642006287959,0.429,3367.9,3367.1,1.6140349]
[1642006288151,0.429,3367.9,3367.3,1.48421]
[1642006288361,0.429,3367.9,3367.4,0.1187]
[1642006288555,0.429,3367.9,3367.5,0.74209]
[1642006288755,0.429,3367.9,3367.5,0.7509312]
[1642006288956,2.27578473,3368.0,3367.6,0.00827278]
[1642006289257,2.27578473,3368.0,3367.7,0.74209]
[1642006289657,2.28569045,3368.1,3367.8,0.00713593]
[1642006290560,1.26781572,3368.1,3367.8,0.00713593]
[1642006291599,2.00990572,3368.1,3367.8,0.00713593]
[1642006292101,2.00990572,3368.1,3367.6,0.00827278]
[1642006292501,2.48504901,3368.0,3367.6,0.00827278]
[1642006292703,3.22720901,3368.0,3367.6,0.00827278]
[1642006293109,3.22720901,3368.0,3367.4,0.00940963]
[1642006293305,3.22720901,3368.0,3367.3,0.00997805]
[1642006293507,1.47210861,3367.5,3367.2,0.01054647]
[1642006294851,1.47210861,3367.5,3367.3,0.1187]
[1642006295251,1.47210861,3367.5,3367.4,0.00940963]
[1642006296856,4.69125186,3367.5,3367.4,0.00940963]
[1642006297255,0.3,3367.4,3367.0,0.01168332]
[1642006297453,3.42726973,3367.3,3366.5,0.01452544]
[1642006297652,1.34489572,3366.6,3366.5,0.01452544]
[1642006297853,1.34489572,3366.6,3366.3,0.01566229]
[1642006297854,4.83946147,3366.6,3366.3,0.01566229]
[1642006298056,4.83946147,3366.6,3366.2,0.01623071]
[1642006298057,0.8259,3366.6,3366.2,0.01623071]
[1642006298306,0.8259,3366.6,3366.2,0.75866071]
[1642006298708,0.8259,3366.6,3366.3,0.01566229]
[1642006298909,2.86635124,3366.7,3366.3,0.01566229]
[1642006298910,0.19,3366.7,3366.3,0.01566229]
[1642006299111,1.4849762,3367.4,3366.4,0.1188]
[1642006299112,2.65031807,3367.2,3366.4,0.1188]
[1642006299313,1.2036,3367.3,3366.6,1.53048688]
[1642006299513,2.26716877,3367.4,3366.7,0.1188]
[1642006299711,2.26716877,3367.4,3366.7,0.87447859]
[1642006299911,2.26716877,3367.4,3366.8,0.01282017]
[1642006300513,3.9128,3367.6,3366.8,0.01282017]
[1642006300712,3.9128,3367.6,3366.9,0.74225]
[1642006300914,3.9128,3367.6,3366.9,1.04225]
[1642006301113,5.0684794,3367.6,3367.0,0.01168332]
[1642006301513,0.74233,3367.4,3367.0,0.01168332]
[1642006301711,5.3684794,3367.6,3367.0,0.01168332]
[1642006301712,0.1187,3367.3,3367.0,0.01168332]
[1642006301913,5.1871794,3367.6,3366.8,0.01282017]
[1642006302157,5.0684794,3367.6,3366.8,0.75511017]
[1642006302557,5.0684794,3367.6,3366.9,0.01225174]
[1642006302756,0.74231,3367.4,3366.9,0.01225174]
[1642006303058,0.1187,3367.5,3366.8,0.74228]
[1642006303257,6.57763883,3367.6,3366.8,0.74228]
[1642006303464,6.57763883,3367.6,3366.9,0.13095174]
[1642006303860,6.57763883,3367.6,3367.0,0.01168332]
[1642006304063,5.42195943,3367.6,3367.0,0.01168332]
[1642006304265,5.42195943,3367.6,3367.1,0.86088]
[1642006304266,3.9128,3367.6,3367.1,0.86088]
[1642006304665,3.46766877,3368.0,3367.2,0.01054647]
[1642006304863,3.46766877,3368.0,3367.3,0.1187]
[1642006305262,1.14147733,3367.9,3367.4,0.00940963]
[1642006305902,1.14147733,3367.9,3367.6,0.7421]
[1642006306106,1.14147733,3367.9,3367.2,1.49475647]
[1642006306301,1.14147733,3367.9,3367.7,0.00770436]
[1642006306505,3.39421788,3367.9,3367.3,0.00997805]
[1642006306704,3.39429118,3367.9,3367.5,0.0088412]
[1642006306909,3.82329118,3367.9,3367.3,0.00997805]
[1642006307103,3.82329118,3367.9,3367.1,0.0111149]
[1642006307403,3.82329118,3367.9,3366.9,0.01225174]
[1642006307603,1.25478317,3367.2,3366.9,0.01225174]
[1642006309316,0.74229,3367.6,3366.9,0.75452174]
[1642006309591,2.25283055,3367.6,3366.9,0.75452174]
[1642006309784,2.25283055,3367.6,3367.0,0.01168332]
[1642006310386,0.74232,3367.3,3367.0,0.01168332]
[1642006310589,0.74232,3367.3,3366.9,0.01225174]
[1642006310994,0.74232,3367.3,3366.8,0.01282017]
[1642006311200,2.64031013,3367.5,3367.0,0.74224]
[1642006311591,1.51054055,3367.5,3367.1,0.7533249]
[1642006311792,1.51054055,3367.5,3367.1,2.2376449]
[1642006311994,1.51054055,3367.5,3367.2,0.01054647]
[1642006312896,1.51054055,3367.6,3367.3,0.74216]
[1642006313301,1.51054055,3367.6,3367.4,0.00940963]
[1642006314109,2.96512182,3367.8,3367.4,0.00940963]
[1642006314610,1.51054055,3367.8,3367.4,0.00940963]
[1642006315008,1.51054055,3367.7,3367.4,0.00940963]
[1642006315207,1.62924055,3367.7,3367.4,0.00940963]
[1642006315407,1.62924055,3367.7,3367.2,0.01054647]
[1642006315610,1.62924055,3367.7,3366.8,0.13152017]
[1642006315611,1.51054055,3367.7,3366.8,0.13152017]
[1642006315912,1.51054055,3367.5,3366.9,0.75454174]
[1642006316110,1.51054055,3367.5,3367.1,1.48432]
[1642006316513,1.51054055,3367.5,3367.2,0.01054647]
[1642006317349,0.74234,3367.4,3367.2,0.01054647]
[1642006317745,0.74234,3367.4,3366.9,0.75454174]
[1642006317955,1.62924055,3367.6,3367.0,0.01168332]
[1642006318151,1.51054055,3367.6,3367.0,0.01168332]
[1642006318553,1.51054055,3367.6,3366.9,0.01225174]
[1642006318951,1.51054055,3367.4,3366.9,0.01225174]
[1642006319155,1.51054055,3367.4,3366.8,0.01282017]
[1642006319355,1.51054055,3367.4,3366.6,0.01395701]
[1642006319755,2.25288055,3367.4,3366.6,0.75630701]
[1642006319956,1.51054055,3367.3,3366.6,0.75630701]
[1642006320154,1.51054055,3367.3,3366.7,0.01338859]
[1642006320354,1.34836907,3366.8,3366.7,0.01338859]
[1642006320558,1.34836907,3366.8,3366.5,0.01452544]
[1642006321404,1.34836907,3366.8,3366.4,0.75755386]
[1642006321605,1.34836907,3366.8,3366.5,0.01452544]
[1642006322004,1.62934055,3367.0,3366.5,0.01452544]
[1642006322204,1.93954055,3367.0,3366.5,0.01452544]
[1642006322405,1.93954055,3367.0,3366.6,0.1188]
[1642006322406,1.51054055,3367.0,3366.6,0.1188]
[1642006322606,1.51054055,3367.0,3366.6,0.4188]
[1642006322804,1.51054055,3366.9,3366.7,0.75569859]
[1642006323005,1.51054055,3366.9,3366.8,0.1188]
[1642006323205,1.51054055,3366.9,3366.8,0.13162017]
[1642006324208,3.71864691,3367.1,3366.8,0.01282017]
[1642006324412,1.45147814,3367.1,3366.9,0.7423]
[1642006324881,1.45147814,3367.1,3367.0,0.01168332]
[1642006325480,1.51054055,3367.3,3367.1,0.74229]
[1642006325680,1.51054055,3367.3,3367.1,1.48458]
[1642006325880,1.51054055,3367.3,3367.2,0.01054647]
[1642006326683,2.26716877,3367.5,3367.3,3.7]
[1642006326880,2.26716877,3367.5,3367.4,3.99193]
[1642006327084,4.12656673,3368.3,3367.5,1.32249188]
[1642006327085,3.03166965,3367.6,3367.5,1.32249188]
[1642006327382,3.77336122,3368.1,3367.7,0.5935412]
[1642006327582,3.77336122,3368.1,3367.7,1.0]
[1642006327783,3.77336122,3368.1,3367.8,0.00713593]
[1642006327985,2.42505561,3368.4,3368.1,1.48398]
[1642006328186,3.6331,3368.6,3368.1,2.60268]
[1642006328403,3.6331,3368.6,3368.2,0.00486224]
[1642006328605,0.50870859,3368.5,3368.2,1.48883224]
[1642006329006,0.50870859,3368.5,3368.3,0.00429382]
[1642006329407,0.50870859,3368.5,3368.3,0.74627382]
[1642006329408,1.51615381,3368.4,3368.3,0.74627382]
[1642006329609,0.50870859,3368.5,3368.4,0.74199]
[1642006329812,9.11488887,3368.9,3368.4,0.74199]
[1642006330009,0.84784765,3368.8,3368.4,0.74571539]
[1642006330211,4.62120887,3368.8,3368.5,0.00315697]
[1642006330611,4.62120887,3368.8,3368.6,0.74197]
[1642006331014,4.62120887,3368.8,3368.7,0.00202012]
[1642006331309,3.77336122,3368.8,3368.7,0.1187]
[1642006331511,3.77336122,3368.8,3368.6,0.7120966]
[1642006331709,3.77336122,3368.8,3368.6,3.6793166]
[1642006332195,0.84784765,3369.2,3368.7,1.0]
[1642006332401,3.77336122,3369.5,3369.0,0.74176]
[1642006332697,0.00227369,3369.1,3368.9,3.0768993]
[1642006333097,0.00170527,3369.0,3368.9,3.22528]
[1642006333294,0.00170527,3369.0,3368.9,2.22528]
[1642006333898,0.00170527,3369.0,3368.9,1.48352]
[1642006337610,0.00170527,3369.0,3368.9,2.22527]
[1642006338012,0.00170527,3369.0,3368.9,3.22527]
[1642006341555,0.00170527,3369.0,3368.9,2.48352]
[1642006341757,0.00170527,3369.0,3368.9,1.48352]
[1642006343508,0.00170527,3369.0,3368.9,2.96706]
[1642006347056,0.00170527,3369.0,3368.9,3.96706]
[1642006352809,0.00170527,3369.0,3368.9,2.96706]
[1642006353008,0.00170527,3369.0,3368.9,1.48352]
[1642006354661,0.00170527,3369.0,3368.9,7.22528]
[1642006354862,0.00170527,3369.0,3368.9,7.64398]
[1642006355068,5.06144981,3370.6,3369.0,5.98317]
[1642006355266,5.06144981,3370.6,3369.3,0.01238168]
[1642006355468,5.06144981,3370.6,3369.5,0.03196046]
[1642006355667,5.06144981,3370.6,3369.9,0.74141]
[1642006355867,5.06144981,3370.6,3370.0,0.5476]
[1642006356068,10.10017349,3371.1,3370.0,2.35224496]
[1642006356269,0.00625266,3370.1,3370.0,3.09362496]
[1642006356467,3.77336122,3371.1,3370.0,3.09362496]
[1642006356468,0.84739961,3370.5,3370.1,2.65]
[1642006356670,0.84739961,3370.5,3370.3,0.74137]
[1642006357069,0.84739961,3370.5,3370.3,1.34137]
[1642006357667,0.84739961,3370.5,3370.3,1.9344543]
[1642006357867,0.00511581,3371.0,3370.3,1.9344543]
[1642006358074,0.00511581,3371.0,3370.3,2.9344543]
[1642006358310,0.00454738,3370.9,3370.3,2.9344543]
[1642006358515,0.00454738,3370.9,3370.6,1.04135]
[1642006358715,0.00397896,3370.8,3370.7,1.48272]
[1642006359115,0.00397896,3370.8,3370.7,2.48272]
[1642006360518,0.96599961,3371.4,3370.8,3.3]
[1642006360723,0.96599961,3371.4,3371.1,0.74117]
[1642006360916,0.96599961,3371.4,3371.1,1.3340749]
[1642006360917,0.00227369,3371.2,3371.1,1.3340749]
[1642006361116,0.00227369,3371.2,3371.1,2.04117]
[1642006361922,0.00227369,3371.2,3371.1,3.52353]
[1642006362963,0.00227369,3371.2,3371.1,4.1164728]
[1642006363371,0.00227369,3371.2,3371.1,5.62403437]
[1642006363568,0.00227369,3371.2,3371.1,3.52353]
[1642006363769,0.00227369,3371.2,3371.1,3.22353]
[1642006365671,0.00227369,3371.2,3371.1,0.88722337]
[1642006365914,0.00227369,3371.2,3371.1,1.14605337]
[1642006366112,0.00227369,3371.2,3371.1,0.14605337]
[1642006366710,0.00227369,3371.2,3371.0,0.3]
[1642006366909,0.00227369,3371.2,3371.0,1.0]
[1642006367109,0.54930527,3371.1,3369.8,0.5]
[1642006367310,6.37336542,3371.0,3369.8,0.5]
[1642006367609,0.5476,3370.9,3369.9,0.00511581]
[1642006367807,1.7126,3370.9,3369.9,0.00511581]
[1642006368010,1.7126,3370.9,3370.1,0.74154]
[1642006368415,0.74157,3370.6,3370.2,0.00341054]
[1642006368612,0.1186,3370.5,3370.2,0.00341054]
[1642006369214,0.429,3370.7,3370.3,0.74152]
[1642006369654,0.429,3370.7,3370.4,0.00227369]
[1642006370355,0.429,3370.7,3370.5,0.74148]
[1642006370756,0.429,3370.7,3370.6,0.00113685]
[1642006372357,2.47417188,3370.9,3370.6,0.00113685]
[1642006372556,2.47417188,3370.9,3370.7,0.74144]
[1642006373812,0.00113685,3371.0,3370.7,0.74144]
[1642006374011,2.45754322,3371.0,3370.7,0.74144]
[1642006374412,0.00113685,3371.0,3370.7,0.74144]
[1642006375011,0.00113685,3371.0,3370.7,1.48288]
[1642006375712,2.44586499,3371.0,3370.7,1.48288]
[1642006375915,2.44586499,3371.0,3370.7,0.8449118]
[1642006376115,0.00113685,3371.0,3370.7,0.8449118]
[1642006376313,2.46593913,3371.0,3370.7,0.8449118]
[1642006377557,0.50843061,3370.9,3370.7,0.8449118]
[1642006378558,0.50843061,3370.9,3370.7,1.1449118]
[1642006378765,0.50843061,3370.9,3370.7,0.9635118]
[1642006379560,0.50843061,3370.9,3370.7,1.2635118]
[1642006380259,0.50843061,3370.9,3370.7,0.9635118]
[1642006380460,0.50843061,3370.9,3370.7,0.5220718]
[1642006380914,2.43219834,3370.8,3370.6,1.00113685]
[1642006381113,2.43219834,3370.8,3370.6,0.00113685]
[1642006381514,4.35843061,3370.7,3370.4,0.00227369]
[1642006381714,0.50843061,3370.7,3370.3,0.00284212]
[1642006381916,0.50843061,3370.7,3370.2,0.74156]
[1642006382318,0.50843061,3370.7,3370.3,0.00284212]
[1642006382515,0.50843061,3370.7,3370.2,0.25761911]
[1642006382715,0.00170527,3370.6,3370.2,0.25761911]
[1642006382917,0.00170527,3370.6,3370.0,1.48309]
[1642006383117,2.96358831,3370.7,3369.7,1.4832]
[1642006383118,0.11973685,3370.5,3369.7,1.4832]
[1642006383418,0.12030527,3370.6,3370.1,0.00113684]
[1642006383823,0.00113685,3370.5,3370.1,0.00113684]
[1642006384220,0.50843061,3370.4,3369.8,1.7831]
[1642006384420,0.50843061,3370.4,3370.0,1.48307]
[1642006384662,0.50843061,3370.4,3369.9,1.12087369]
[1642006384861,0.74166,3370.3,3369.9,0.42087369]
[1642006385065,0.74166,3370.3,3370.0,0.00170527]
[1642006385462,0.50843061,3370.2,3370.0,0.00170527]
[1642006386162,0.50843061,3370.2,3370.0,0.74161]
[1642006386763,0.50843061,3370.4,3370.0,0.74161]
[1642006387165,3.53289329,3370.4,3370.1,0.74149]
[1642006387365,3.53289329,3370.4,3370.2,0.74148]
[1642006387563,3.53289329,3370.4,3370.2,1.04148]
[1642006387963,0.00113685,3370.5,3370.2,1.04148]
[1642006387964,0.50843061,3370.3,3370.2,1.04148]
[1642006389209,0.50843061,3370.4,3370.2,1.04148]
[1642006390610,0.50843061,3370.4,3370.2,0.74148]
[1642006390809,0.50843061,3370.4,3370.1,1.1186]
[1642006391011,0.50843061,3370.4,3370.1,1.0]
[1642006391211,2.40142735,3370.3,3370.0,0.3]
[1642006391412,2.40142735,3370.3,3369.9,0.30227369]
[1642006391615,3.14308735,3370.3,3369.9,1.00227369]
[1642006391811,0.50849822,3370.2,3370.0,0.00170527]
[1642006392068,0.50849822,3370.2,3370.0,0.74331527]
[1642006392260,0.50849822,3370.2,3370.0,0.74161]
[1642006392459,0.50849822,3370.2,3370.0,1.04161]
[1642006393159,2.92229024,3370.2,3369.9,1.00227369]
[1642006393363,0.50849822,3370.2,3369.9,0.74389369]
[1642006393563,0.50849822,3370.2,3370.0,0.00170527]
[1642006393764,0.50849822,3370.2,3370.0,0.74331527]
[1642006395163,3.5329609,3370.2,3370.0,0.74331527]
[1642006395565,3.5329609,3370.2,3370.0,2.48491527]
[1642006395834,0.50849822,3370.1,3370.0,1.74331527]
[1642006397034,3.5329609,3370.2,3370.0,1.74331527]
[1642006397234,3.5329609,3370.2,3370.1,0.74159]
[1642006397835,3.5329609,3370.2,3370.1,0.0514802]
[1642006398035,3.5329609,3370.2,3370.0,0.74331527]
[1642006398235,3.5329609,3370.2,3370.1,0.74156]
[1642006398439,0.50849822,3370.2,3370.1,0.74156]
[1642006399038,0.50849822,3370.2,3370.0,0.74331527]
[1642006399241,3.54387815,3370.2,3370.0,0.74331527]
[1642006399441,3.03537993,3370.2,3370.0,1.48491527]
[1642006400064,3.03537993,3370.2,3370.0,0.74331527]
[1642006400663,0.50849822,3370.1,3370.0,0.74331527]
[1642006401266,3.00240156,3370.1,3370.0,0.00170527]
[1642006401463,0.50849822,3370.1,3370.0,0.00170527]
[1642006401665,0.50849822,3370.1,3369.9,0.00227369]
[1642006401863,1.54162624,3370.0,3369.9,0.00227369]
[1642006402266,4.04301267,3370.0,3369.9,0.00227369]
[1642006402467,7.1504431,3370.0,3369.9,0.00227369]
[1642006402767,5.41432743,3370.0,3369.9,0.00227369]
[1642006403308,2.37452624,3370.0,3369.9,0.00227369]
[1642006403512,2.88302446,3370.0,3369.9,0.00227369]
[1642006405309,5.39500962,3370.0,3369.9,0.00227369]
[1642006407488,2.88302446,3370.0,3369.9,0.00227369]
[1642006408285,2.88302446,3370.0,3369.7,0.00341054]
[1642006408489,2.79181446,3370.0,3369.7,0.00341054]
[1642006408689,2.79181446,3370.0,3369.6,0.00397896]
[1642006408988,0.50849822,3369.9,3369.6,0.00397896]
[1642006409194,2.90808122,3369.9,3369.6,0.00397896]
[1642006409389,0.5477,3369.8,3369.6,0.00397896]
[1642006409588,1.28959,3369.8,3369.6,0.00397896]
[1642006409790,4.33081109,3369.8,3369.1,0.00682108]
[1642006409992,0.50849822,3369.7,3369.1,0.00682108]
[1642006410190,0.93749822,3369.7,3368.8,0.00852635]
[1642006410392,0.93749822,3369.7,3368.8,0.12722635]
[1642006410393,2.42111822,3369.7,3368.8,0.12722635]
[1642006410593,0.74182,3369.4,3369.2,0.74183]
[1642006410808,2.42111822,3369.7,3369.2,0.74183]
[1642006411009,2.42111822,3369.7,3369.3,0.00568423]
[1642006411408,2.94547911,3369.6,3369.2,0.00625265]
[1642006411611,3.04319707,3369.4,3369.1,0.00682108]
[1642006411810,3.04319707,3369.4,3369.1,0.12552108]
[1642006411811,3.78501707,3369.4,3369.1,0.12552108]
[1642006412012,3.78501707,3369.4,3369.1,0.86731108]
[1642006412209,3.78501707,3369.4,3369.2,0.00625265]
[1642006412511,0.50849822,3369.3,3369.2,0.00625265]
[1642006412911,0.50849822,3369.3,3369.0,0.74186]
[1642006413110,3.031435,3369.3,3368.7,0.74187]
[1642006413513,0.50849822,3369.3,3368.8,0.0022737]
[1642006413914,3.04319707,3369.2,3368.8,0.0022737]
[1642006414114,3.04319707,3369.2,3369.0,0.74186]
[1642006414763,3.55169529,3369.3,3369.0,0.74186]
[1642006415266,0.50393346,3369.2,3369.0,0.74186]
[1642006415865,0.50393346,3369.2,3369.1,0.74179]
[1642006416465,3.04319707,3369.5,3369.1,0.74179]
[1642006416666,3.04319707,3369.5,3369.2,0.74176]
[1642006416865,3.04433391,3369.4,3369.2,0.74176]
[1642006417267,3.04319707,3369.4,3369.3,0.74175]
[1642006417666,3.04319707,3369.5,3369.3,0.74175]
[1642006417870,3.04319707,3369.5,3369.3,2.03847963]
[1642006418069,3.04490234,3369.5,3369.3,2.03847963]
[1642006418312,0.00170527,3369.5,3369.3,3.03847963]
[1642006419116,2.27868782,3369.4,3369.3,3.03847963]
[1642006419516,2.27868782,3369.4,3369.3,1.85505963]
[1642006419916,2.27868782,3369.4,3369.3,0.85505963]
[1642006420119,2.27868782,3369.4,3369.3,1.85505963]
[1642006420318,2.27868782,3369.4,3369.3,0.97375963]
[1642006420520,2.27868782,3369.4,3369.3,1.97375963]
[1642006420722,2.28039309,3369.5,3369.3,0.97375963]
[1642006420918,2.28039309,3369.5,3369.4,0.1187]
[1642006421121,2.28039309,3369.5,3369.3,1.16045]
[1642006421721,2.28039309,3369.5,3369.3,2.16045]
[1642006421920,2.28039309,3369.5,3369.3,1.16045]
[1642006422202,2.28039309,3369.5,3369.3,3.64391]
[1642006422401,2.28039309,3369.5,3369.3,1.90216]
[1642006422604,2.28039309,3369.5,3369.4,1.0]
[1642006422901,2.28039309,3369.5,3369.3,3.64391]
[1642006423103,2.28039309,3369.5,3369.4,1.0]
[1642006423504,0.00170527,3369.5,3369.4,1.0]
[1642006424310,0.00170527,3369.5,3369.3,2.22521]
[1642006424607,0.00170527,3369.5,3369.3,3.22521]
[1642006424814,0.00170527,3369.5,3369.4,2.74098274]
[1642006425008,0.00170527,3369.5,3369.4,2.9687]
[1642006425206,0.00170527,3369.5,3369.4,3.9687]
[1642006425509,0.1187,3369.9,3369.6,0.74149]
[1642006425711,0.1187,3369.9,3369.7,2.27197834]
[1642006425916,0.00170527,3369.8,3369.7,3.75503834]
[1642006426115,0.00170527,3369.8,3369.7,4.01348834]
[1642006427117,0.00170527,3369.8,3369.7,3.89478834]
[1642006428622,0.00170527,3369.8,3369.7,6.58562451]
[1642006428821,0.00170527,3369.8,3369.7,4.19478834]
[1642006429122,0.00170527,3369.8,3369.7,6.94155171]
[1642006429422,0.00170527,3369.8,3369.7,4.19478834]
[1642006429892,0.00170527,3369.8,3369.7,3.89478834]
[1642006430691,0.00170527,3369.8,3369.7,6.57471201]
[1642006430897,0.00170527,3369.8,3369.7,3.89478834]
[1642006431093,0.00170527,3369.8,3369.7,4.19478834]
[1642006431295,0.00170527,3369.8,3369.7,3.89478834]
[1642006432495,0.00170527,3369.8,3369.7,4.19478834]
[1642006433814,0.00170527,3369.8,3369.7,3.89478834]
[1642006434016,0.00170527,3369.8,3369.7,2.89478834]
[1642006434414,0.00170527,3369.8,3369.7,1.48306]
[1642006435315,0.00170527,3369.8,3369.7,2.48306]
[1642006435716,0.51021156,3369.8,3369.7,2.48306]
[1642006436221,0.51021156,3369.8,3369.7,2.78306]
[1642006436415,0.51021156,3369.8,3369.7,5.44009]
[1642006437662,0.51021156,3369.8,3369.7,5.14009]
[1642006437862,0.51021156,3369.8,3369.7,2.48306]
[1642006442817,0.51021156,3369.8,3369.7,5.17171532]
[1642006443019,0.1187,3370.4,3370.1,0.74135]
[1642006443222,2.16724249,3371.0,3370.1,1.17035]
[1642006443418,2.16724249,3371.0,3370.3,6.15]
[1642006443618,2.16724249,3371.0,3370.4,1.1186]
[1642006443817,0.00341054,3370.9,3370.4,1.1186]
[1642006444019,0.00341054,3370.9,3370.5,3.66948853]
[1642006444217,0.00284212,3370.8,3370.7,1.42892154]
[1642006444420,0.00284212,3370.8,3370.7,2.17013154]
[1642006444672,0.00284212,3370.8,3370.7,6.36457534]
[1642006445173,0.00284212,3370.8,3370.7,7.36457534]
[1642006445371,1.4774547,3371.5,3370.7,7.36457534]
[1642006445575,1.4774547,3371.5,3371.1,0.74121]
[1642006445774,1.4774547,3371.5,3371.1,1.78244]
[1642006445775,0.00341054,3371.4,3371.1,1.78244]
[1642006445974,0.00341054,3371.4,3371.1,1.48244]
[1642006446173,1.47688628,3371.5,3371.1,5.15192853]
[1642006446578,1.47688628,3371.5,3371.3,0.74117]
[1642006451119,1.47010799,3371.5,3371.3,0.74117]
[1642006454780,1.57010799,3371.5,3371.3,0.74117]
[1642006460070,3.9655,3372.0,3371.7,0.74105]
[1642006460367,0.00341054,3371.9,3371.8,0.74105]
[1642006460667,1.86884626,3372.1,3371.8,0.74105]
[1642006460668,0.00397896,3372.0,3371.8,0.74105]
[1642006460867,0.00397896,3372.0,3371.8,0.85965]
[1642006461068,0.00397896,3372.0,3371.9,0.74104]
[1642006461470,0.00397896,3372.0,3371.9,1.74104]
[1642006461667,0.00397896,3372.0,3371.9,1.69104]
[1642006462070,0.00397896,3372.0,3371.9,0.69104]
[1642006462474,0.00397896,3372.0,3371.8,2.22312]
[1642006462670,0.1186,3372.0,3371.8,2.22312]
[1642006463814,1.021683,3372.1,3371.8,2.22312]
[1642006464014,0.50820311,3371.9,3371.8,2.22312]
[1642006464214,0.50820311,3371.9,3371.8,3.22312]
[1642006464414,0.50820311,3371.9,3371.8,3.22425684]
[1642006464619,0.50820311,3371.9,3371.8,3.52425684]
[1642006465418,0.50820311,3372.0,3371.8,3.52425684]
[1642006466220,0.50820311,3372.0,3371.8,3.22425684]
[1642006470578,0.38034815,3372.0,3371.8,3.22425684]
[1642006470816,1.021683,3372.1,3371.8,3.22425684]
[1642006472320,1.021683,3372.1,3371.9,1.48227]
[1642006472519,1.021683,3372.1,3372.0,0.74114]
[1642006475867,1.03369767,3372.1,3371.8,0.00113684]
[1642006476267,1.1321,3372.0,3371.4,0.00341054]
[1642006476468,1.1321,3372.0,3370.9,0.00625266]
[1642006476669,0.1186,3371.9,3370.9,0.00625266]
[1642006476866,1.56064009,3371.5,3370.9,0.00625266]
[1642006477067,0.74135,3371.8,3371.3,0.74132]
[1642006477468,0.74135,3371.8,3371.4,0.00341054]
[1642006477667,3.02871831,3371.5,3371.4,0.00341054]
[1642006477870,3.02871831,3371.5,3371.4,1.48593054]
[1642006478517,1.94126504,3371.8,3371.4,1.48593054]
[1642006478518,3.02871831,3371.6,3371.4,1.48593054]
[1642006478719,3.02871831,3371.6,3371.4,1.10694336]
[1642006480721,3.02871831,3371.5,3371.4,1.10694336]
[1642006481123,0.00170527,3371.7,3371.4,1.10694336]
[1642006481521,0.00113685,3371.6,3371.4,1.10694336]
[1642006488623,0.00550328,3371.6,3371.1,0.1186]
[1642006488825,0.1186,3371.5,3371.1,0.1186]
[1642006489024,0.1186,3371.5,3371.2,0.00113685]
[1642006489223,4.93450807,3371.6,3371.2,0.00113685]
[1642006489424,4.63450807,3371.6,3371.2,0.00113685]
[1642006489675,0.74152,3371.4,3371.2,0.00113685]
[1642006489873,4.98899807,3371.6,3371.2,0.00113685]
[1642006490273,3.77336122,3371.4,3371.2,0.00113685]
[1642006490473,3.77336122,3371.4,3371.2,0.00033685]
[1642006490675,3.77336122,3371.4,3371.2,0.74169685]
[1642006491076,0.50830987,3371.3,3371.2,0.74169685]
[1642006491674,0.50830987,3371.3,3371.2,1.48304685]
[1642006491875,0.50830987,3371.3,3371.2,0.74169685]
[1642006492175,0.50676464,3371.3,3371.2,0.00033685]
[1642006492574,0.50676464,3371.3,3370.9,1.00204212]
[1642006492774,0.50676464,3371.3,3370.9,0.12064212]
[1642006492974,1.24818464,3371.3,3371.1,0.7414]
[1642006493520,0.50676464,3371.3,3371.1,0.7414]
[1642006493722,0.50676464,3371.3,3371.1,1.48279]
[1642006493922,0.7413898,3371.5,3371.1,0.80259262]
[1642006494322,0.0008,3371.4,3371.1,0.80259262]
[1642006494522,0.7422,3371.4,3371.1,0.80259262]
[1642006495126,0.0008,3371.4,3371.2,0.1186]
[1642006495323,0.0008,3371.4,3371.3,0.74125]
[1642006496924,0.0008,3371.4,3371.3,1.74125]
[1642006499174,0.0008,3371.4,3371.3,0.74125]
[1642006499774,7.58506122,3371.9,3371.3,0.74125]
[1642006499976,7.58506122,3371.9,3371.2,1.60112]
[1642006500177,0.74135,3371.7,3371.2,1.60112]
[1642006500579,0.00113685,3371.6,3371.2,1.48252]
[1642006501020,0.00113685,3371.6,3371.3,2.24135]
[1642006501221,0.00113685,3371.6,3371.3,2.98261]
[1642006501521,0.00113685,3371.6,3371.3,4.10121]
[1642006502323,0.00113685,3371.6,3371.4,0.74125]
[1642006502525,0.00113685,3371.6,3371.5,0.1186]
[1642006503123,0.00113685,3371.6,3371.5,1.32162102]
[1642006503325,0.00113685,3371.6,3371.5,2.59777793]
[1642006504328,0.00113685,3371.6,3371.5,3.59777793]
[1642006507076,0.00113685,3371.6,3371.5,3.47917793]
[1642006507879,0.00113685,3371.6,3371.5,1.0]
[1642006508079,0.00113685,3371.6,3371.4,1.74125]
[1642006508922,0.00113685,3371.6,3371.4,2.98921126]
[1642006509123,0.00113685,3371.6,3371.4,1.70475313]
[1642006509324,0.00113685,3371.6,3371.5,1.40761694]
[1642006509723,2.27709187,3371.5,3371.4,1.98921126]
[1642006509924,2.27709187,3371.5,3371.4,2.10781126]
[1642006510523,0.00113685,3371.6,3371.4,2.10781126]
[1642006510726,0.00113685,3371.6,3371.4,2.40781126]
[1642006511024,0.00113685,3371.6,3371.4,0.85985]
[1642006511227,0.00113685,3371.6,3371.4,1.85985]
[1642006511423,0.00113685,3371.6,3371.4,0.74125]
[1642006512081,3.03747497,3371.6,3371.4,0.74125]
[1642006512669,0.50823778,3371.5,3371.4,1.74125]
[1642006512872,0.50823778,3371.5,3371.4,0.74125]
[1642006513070,3.5445759,3371.5,3371.4,1.74125]
[1642006514278,3.5445759,3371.5,3371.4,0.74125]
[1642006514476,3.5445759,3371.5,3371.4,1.74125]
[1642006515922,3.5445759,3371.5,3371.3,1.5]
[1642006516123,3.6631759,3371.5,3371.3,1.5]
[1642006516317,7.0186,3371.4,3371.3,1.5]
[1642006516918,7.52683778,3371.4,3371.3,1.5]
[1642006517426,7.95583778,3371.4,3371.3,1.5]
[1642006518323,11.729199,3371.4,3371.3,1.5]
[1642006518522,5.3,3371.3,3370.2,0.1186]
[1642006518722,0.7415804,3370.8,3370.6,1.5]
[1642006519578,0.50823778,3370.7,3370.6,1.5]
[1642006519976,0.50823778,3370.7,3370.6,1.5030737]
[1642006520772,0.50823778,3370.8,3370.6,1.5030737]
[1642006521174,0.50823778,3370.8,3370.7,0.00250527]
[1642006521773,1.24975768,3370.8,3370.7,0.00250527]